bitfinex/quotes_ETHUSD_20240618
["timestamp","ask_amount","ask_price","bid_price","bid_amount"]
[1718694881113,2.109217,3445.6,3445.5,2.4868]
[1718694881313,2.10917483,3445.6,3445.5,2.4868]
[1718694881730,2.10917483,3445.9,3445.5,2.4868]
[1718694881932,2.10917483,3445.8,3445.5,2.4868]
[1718694882138,2.10917483,3445.7,3445.5,2.4868]
[1718694882347,2.10917483,3445.6,3445.5,2.4868]
[1718694882745,2.10917483,3445.9,3445.5,2.4868]
[1718694882911,2.10917483,3445.8,3445.5,2.4868]
[1718694883109,2.10917483,3445.7,3445.5,2.4868]
[1718694883331,2.10917483,3445.6,3445.5,2.4868]
[1718694883533,2.10917483,3445.9,3445.5,3.3458]
[1718694883731,2.10917483,3445.8,3445.5,3.3458]
[1718694884009,2.10917483,3445.7,3445.5,3.3458]
[1718694884229,2.10917483,3445.6,3445.5,3.3458]
[1718694884644,2.10917483,3445.9,3445.5,3.3458]
[1718694884841,3.0,3446.0,3445.5,3.3458]
[1718694884842,2.10917483,3445.8,3445.5,3.3458]
[1718694885043,2.10917483,3445.7,3445.5,3.3458]
[1718694885360,2.10917483,3445.6,3445.5,3.3458]
[1718694885764,2.10917483,3445.9,3445.5,3.3458]
[1718694885917,2.10917483,3445.8,3445.5,3.3458]
[1718694886116,2.10917483,3445.7,3445.5,3.3458]
[1718694886349,2.10917483,3445.6,3445.5,3.3458]
[1718694886551,2.10917483,3445.9,3445.5,3.3458]
[1718694886868,2.10917483,3445.8,3445.5,3.3458]
[1718694887057,2.10917483,3445.7,3445.5,2.4868]
[1718694887262,2.10917483,3445.6,3445.5,2.4868]
[1718694887460,2.10917483,3445.8,3445.5,2.4868]
[1718694887666,4.21841015,3445.7,3445.5,2.4868]
[1718694887839,3.0,3446.0,3445.5,2.4868]
[1718694887840,4.21841015,3445.6,3445.5,2.4868]
[1718694892470,4.21841884,3445.6,3445.5,2.4868]
[1718694896188,4.21841884,3445.6,3444.9,2.4177]
[1718694896483,4.21841884,3445.5,3445.0,0.859]
[1718694896693,0.42184188,3445.6,3445.0,0.859]
[1718694896694,4.21841884,3445.4,3445.0,0.859]
[1718694896904,4.21841884,3445.3,3445.0,0.859]
[1718694897068,4.21841884,3445.2,3445.0,0.859]
[1718694897274,4.21841884,3445.1,3445.0,0.859]
[1718694897684,4.21862487,3445.1,3445.0,0.859]
[1718694897895,2.10917483,3445.1,3445.0,0.859]
[1718694899272,2.10917483,3445.7,3445.0,0.859]
[1718694899486,2.10917483,3445.6,3445.2,0.859]
[1718694899691,2.10917483,3445.5,3445.2,0.859]
[1718694899898,2.10917483,3445.4,3445.2,0.859]
[1718694900216,2.10917483,3445.3,3445.2,0.859]
[1718694900415,2.10917483,3445.6,3445.2,0.859]
[1718694900614,2.10917483,3445.5,3445.2,0.859]
[1718694900914,2.10917483,3445.4,3445.2,0.91704544]
[1718694901058,2.10917483,3445.3,3445.2,0.859]
[1718694901558,2.10917483,3445.9,3445.2,0.859]
[1718694901809,2.10917483,3445.8,3445.2,0.859]
[1718694901964,2.10917483,3445.7,3445.2,0.859]
[1718694902167,2.10917483,3445.6,3445.2,0.859]
[1718694902356,2.10917483,3445.5,3445.2,0.859]
[1718694902564,2.10917483,3445.4,3445.2,0.859]
[1718694902907,2.10917483,3445.3,3445.2,0.859]
[1718694903111,2.4445,3445.7,3444.6,2.3874]
[1718694903272,2.4445,3445.7,3445.1,0.859]
[1718694903273,2.10917483,3445.6,3445.1,0.859]
[1718694903464,2.10917483,3445.5,3445.1,0.859]
[1718694903663,2.10917483,3445.4,3445.1,0.859]
[1718694903899,2.10917483,3445.3,3445.1,0.859]
[1718694904111,4.56517483,3445.2,3444.3,2.4324]
[1718694904273,0.50221252,3446.1,3444.2,2.90338]
[1718694904274,2.10917483,3445.1,3445.0,0.859]
[1718694904764,0.50221252,3445.7,3445.0,0.859]
[1718694904765,2.10917483,3445.6,3445.0,0.859]
[1718694904965,2.10917483,3445.5,3445.0,0.859]
[1718694905214,2.10917483,3445.4,3445.0,0.859]
[1718694905497,2.10917483,3445.3,3445.2,0.859]
[1718694905710,2.10917483,3445.6,3445.2,0.859]
[1718694905997,2.10917483,3445.5,3445.2,0.859]
[1718694906187,2.10917483,3445.4,3445.2,0.859]
[1718694906390,2.10917483,3445.3,3445.2,0.859]
[1718694906766,2.10917483,3445.6,3445.2,0.859]
[1718694906972,2.10917483,3445.5,3445.3,2.2672]
[1718694907202,7.43,3445.8,3445.4,0.859]
[1718694907406,2.94,3446.2,3445.4,0.859]
[1718694907407,2.10908689,3445.7,3445.6,0.859]
[1718694907589,2.10908689,3446.1,3445.6,0.859]
[1718694907915,2.10908689,3446.0,3445.6,0.859]
[1718694908081,2.10908689,3445.9,3445.6,0.859]
[1718694908283,2.10908689,3445.8,3445.6,0.859]
[1718694908513,2.10908689,3445.7,3445.6,0.859]
[1718694908661,2.10908689,3446.1,3445.6,0.859]
[1718694908866,2.10908689,3446.0,3445.6,0.859]
[1718694909099,2.10908689,3445.9,3445.4,0.05804223]
[1718694909397,2.10908689,3445.8,3445.5,1.12278622]
[1718694909624,2.10908689,3445.7,3445.5,1.12278622]
[1718694909815,2.94,3446.2,3445.5,1.12278622]
[1718694910120,2.10904911,3446.1,3445.3,2.2672]
[1718694910323,2.10904911,3446.1,3445.5,0.859]
[1718694911722,2.10904911,3446.1,3445.7,0.859]
[1718694912220,2.10904911,3446.1,3445.4,0.0580422]
[1718694912437,2.10904911,3446.1,3445.4,0.859]
[1718694913029,4.59974911,3446.0,3445.2,0.859]
[1718694913239,2.10904911,3445.9,3445.2,0.859]
[1718694914310,2.10925037,3445.8,3445.2,0.859]
[1718694914510,2.3081,3445.6,3444.1,0.6090468]
[1718694914718,0.859,3445.1,3443.8,2.3864]
[1718694914888,2.10925037,3445.0,3444.1,0.859]
[1718694915092,2.10925037,3444.9,3443.5,2.3864]
[1718694915305,2.10925037,3444.8,3444.1,0.859]
[1718694915500,2.10925037,3444.8,3443.6,0.52905]
[1718694915705,2.10925037,3444.8,3444.1,0.859]
[1718694916493,2.10925037,3444.8,3444.0,0.859]
[1718694917107,2.10925037,3444.8,3444.4,0.859]
[1718694917313,2.10925037,3444.7,3444.4,0.859]
[1718694917520,3.0,3445.1,3444.4,0.859]
[1718694917720,0.50221252,3445.3,3444.1,0.05806599]
[1718694917721,2.10989596,3445.0,3444.8,0.859]
[1718694918042,2.3385,3445.7,3444.8,0.859]
[1718694918217,2.72942246,3445.6,3444.8,0.859]
[1718694918415,5.10967246,3445.5,3444.8,0.859]
[1718694918616,2.10967246,3445.4,3445.0,0.859]
[1718694919261,2.10967246,3445.4,3444.8,0.859]
[1718694922218,2.10967246,3445.4,3444.6,0.859]
[1718694923242,3.00236471,3445.4,3444.5,0.859]
[1718694923552,2.4165,3445.2,3444.5,0.859]
[1718694923958,2.10967246,3445.1,3444.5,0.859]
[1718694924317,2.10967246,3445.1,3444.1,2.4679]
[1718694924318,2.10967246,3445.1,3444.7,0.859]
[1718694924583,3.0,3445.5,3444.7,0.859]
[1718694924862,2.1097059,3445.4,3444.7,0.859]
[1718694925332,2.1097059,3445.4,3444.7,0.91705307]
[1718694925666,2.1097059,3445.4,3444.7,0.859]
[1718694927834,2.1097059,3445.4,3444.8,2.4152]
[1718694928297,2.1097059,3445.4,3444.9,0.859]
[1718694928767,2.1097059,3445.3,3444.9,0.859]
[1718694928964,2.89621252,3445.6,3444.9,0.859]
[1718694929267,2.10955475,3445.5,3444.9,0.859]
[1718694929469,2.10955475,3445.4,3444.9,0.859]
[1718694929674,2.10955475,3445.3,3444.9,0.859]
[1718694929861,7.43,3445.7,3445.0,0.32742]
[1718694930168,7.43,3445.7,3444.9,0.859]
[1718694930169,2.10952408,3445.6,3444.9,0.859]
[1718694930370,2.10952408,3445.5,3444.9,0.859]
[1718694930576,6.50221252,3445.9,3444.9,0.859]
[1718694930761,5.10945992,3445.8,3444.9,0.859]
[1718694930962,2.10945992,3445.7,3444.9,0.859]
[1718694931370,3.0,3445.8,3444.9,0.859]
[1718694931575,2.10945792,3445.7,3444.9,0.859]
[1718694936480,2.10945792,3445.7,3444.8,2.4152]
[1718694936912,2.10950049,3445.6,3444.8,2.4152]
[1718694937183,4.82770525,3445.8,3444.8,2.4152]
[1718694937184,2.10950049,3445.5,3444.8,2.4152]
[1718694937380,2.10950049,3445.4,3444.8,2.4152]
[1718694937568,3.859,3445.8,3444.9,0.38547244]
[1718694937773,2.10950091,3445.7,3444.9,1.24447244]
[1718694946062,2.10950091,3445.7,3444.9,1.18642]
[1718694948790,2.10950091,3445.7,3445.0,2.3403]
[1718694948969,2.10950091,3445.7,3445.1,0.859]
[1718694949318,2.10950091,3445.6,3445.1,0.859]
[1718694949500,2.10950091,3445.5,3445.1,0.859]
[1718694949807,3.1848,3446.0,3445.1,0.859]
[1718694950009,5.10940796,3445.9,3445.1,0.859]
[1718694950202,2.10940796,3445.8,3445.1,0.859]
[1718694950364,2.10941087,3445.7,3445.1,0.859]
[1718694950558,2.10941087,3445.6,3445.1,0.859]
[1718694950868,3.0,3445.9,3445.1,0.859]
[1718694950869,2.10941087,3445.5,3445.1,0.859]
[1718694951076,3.0,3445.9,3445.1,1.211672]
[1718694951408,2.10940964,3445.8,3445.1,0.859]
[1718694953066,2.10940964,3445.8,3445.0,2.3403]
[1718694953368,2.96840964,3445.8,3445.0,2.3403]
[1718694953575,2.10940964,3445.7,3445.0,2.3403]
[1718694955069,0.859,3445.6,3445.0,2.3403]
[1718694955266,2.4062506,3445.5,3444.3,2.4957]
[1718694955586,2.10940964,3445.4,3444.6,0.859]
[1718694955892,2.10940964,3445.3,3444.7,2.4957]
[1718694956078,0.859,3445.8,3444.8,0.859]
[1718694956277,2.10949532,3445.7,3444.8,0.859]
[1718694956472,2.10949568,3445.6,3444.8,0.859]
[1718694956690,2.10949568,3445.5,3444.8,0.859]
[1718694956891,2.10949568,3445.4,3444.8,0.859]
[1718694957100,2.10949568,3445.3,3444.8,0.859]
[1718694957281,2.10949568,3445.2,3444.8,0.859]
[1718694957482,0.66870692,3445.7,3444.8,0.859]
[1718694957682,2.10949637,3445.6,3444.8,0.859]
[1718694958807,2.10949432,3445.5,3444.8,0.859]
[1718694959006,2.10949432,3445.4,3444.8,0.859]
[1718694959193,2.10949432,3445.3,3444.8,0.859]
[1718694959383,2.10949432,3445.2,3444.8,0.859]
[1718694959585,2.10949617,3445.1,3444.8,0.859]
[1718694959816,0.66870692,3445.7,3444.8,1.19447]
[1718694960011,2.10949647,3445.6,3444.8,0.859]
[1718694962183,1.17097613,3445.7,3444.8,0.859]
[1718694962184,2.10949647,3445.5,3444.8,0.859]
[1718694962514,2.10949647,3445.4,3444.8,0.859]
[1718694962709,2.10949647,3445.3,3444.8,0.859]
[1718694962911,2.10949647,3445.2,3444.8,1.19447]
[1718694963117,2.10949647,3445.1,3444.8,1.19447]
[1718694963321,2.10949647,3445.0,3444.8,1.19447]
[1718694963524,8.79126921,3445.8,3444.8,0.859]
[1718694963689,2.10949307,3445.7,3444.8,0.859]
[1718694964003,2.10949307,3445.6,3444.8,0.91705256]
[1718694964203,2.10949307,3445.5,3444.8,0.91705256]
[1718694964433,2.10949307,3445.4,3444.9,0.34127526]
[1718694964636,2.10949307,3445.3,3444.9,0.34127526]
[1718694964842,2.10949307,3445.2,3444.9,0.34127526]
[1718694965034,2.10949307,3445.1,3444.9,0.34127526]
[1718694965208,2.10949307,3445.0,3444.9,0.34127526]
[1718694965591,2.10949307,3445.7,3444.9,2.4766]
[1718694965851,2.10949307,3445.6,3444.9,2.4766]
[1718694966123,2.10949307,3445.5,3444.9,2.4766]
[1718694966427,2.10949307,3445.4,3444.9,2.4766]
[1718694966603,2.32044238,3445.3,3444.9,2.4766]
[1718694966802,2.10949307,3445.2,3444.9,2.4766]
[1718694967001,2.10949307,3445.1,3444.9,2.4766]
[1718694967202,2.10949307,3445.0,3444.9,2.4766]
[1718694967691,7.93228104,3445.8,3444.9,2.4766]
[1718694967692,2.10949307,3445.7,3444.9,2.4766]
[1718694967892,3.49957048,3445.6,3444.9,2.4766]
[1718694968112,2.10949307,3445.5,3444.9,2.4766]
[1718694968307,2.10949307,3445.4,3444.9,2.4766]
[1718694968593,2.10949307,3445.3,3444.9,2.4766]
[1718694968792,2.10949307,3445.2,3444.9,2.4766]
[1718694968989,2.96849307,3445.1,3444.3,2.4649]
[1718694969193,2.4618,3444.9,3444.2,0.859]
[1718694969547,2.10949307,3444.8,3444.1,0.859]
[1718694969694,2.10949307,3444.8,3444.4,2.4649]
[1718694969895,2.10949307,3444.7,3444.4,2.4649]
[1718694970113,2.10949307,3444.6,3444.4,2.4649]
[1718694970314,2.10949307,3444.5,3444.4,2.4649]
[1718694970715,2.10949307,3445.1,3444.4,2.4649]
[1718694970916,2.10949307,3445.0,3444.4,2.4649]
[1718694971128,2.10949307,3444.9,3444.4,2.4649]
[1718694971449,2.10949307,3444.8,3444.4,2.4649]
[1718694971609,2.10949307,3444.7,3444.4,2.4649]
[1718694971799,2.10949307,3444.6,3444.4,2.4649]
[1718694971999,2.10949307,3444.5,3444.4,2.4649]
[1718694972208,2.10949307,3444.5,3444.4,2.79729]
[1718694972466,0.50228104,3445.7,3445.0,2.90275]
[1718694972758,2.10934099,3445.6,3445.3,2.4516]
[1718694972918,0.50217307,3446.3,3445.5,0.859]
[1718694973119,2.10904982,3446.2,3445.7,0.859]
[1718694973361,2.10904982,3446.1,3445.7,0.859]
[1718694973647,0.859,3446.6,3445.7,0.859]
[1718694973943,3.21688614,3446.5,3445.7,0.859]
[1718694974123,2.10902883,3446.4,3445.7,0.859]
[1718694974322,2.10902883,3446.3,3445.7,0.859]
[1718694974524,2.10902883,3446.2,3445.7,0.859]
[1718694974726,2.10902883,3446.1,3445.7,0.859]
[1718694974920,2.10902883,3446.0,3445.7,0.859]
[1718694975146,2.10902883,3445.9,3445.7,0.859]
[1718694975314,2.10902883,3445.8,3445.7,0.859]
[1718694976117,2.10902883,3446.3,3445.7,0.859]
[1718694976317,2.10902883,3446.2,3445.7,0.859]
[1718694978032,2.96802883,3446.2,3444.8,2.4468]
[1718694978238,4.44212883,3446.1,3445.3,2.4468]
[1718694978449,2.10902883,3446.0,3445.8,0.11]
[1718694980364,2.10925214,3445.9,3445.8,0.11]
[1718694980540,2.10925214,3446.0,3445.8,0.11]
[1718694980741,2.10925214,3445.9,3445.8,0.11]
[1718694981557,2.10925214,3446.0,3445.8,0.11]
[1718694982473,2.10925214,3446.6,3445.9,3.1766]
[1718694982686,0.50221171,3446.7,3446.2,0.859]
[1718694982687,2.10883702,3446.5,3446.2,0.859]
[1718694982866,2.10883702,3446.4,3446.2,0.859]
[1718694983166,2.10883702,3446.3,3446.2,1.18246307]
[1718694983327,7.93221171,3446.8,3446.2,1.18246307]
[1718694983528,2.10877668,3446.7,3446.2,0.859]
[1718694983728,2.10877668,3446.7,3445.9,2.3176]
[1718694984049,2.10877668,3446.6,3445.9,3.1766]
[1718694984243,2.10877668,3446.5,3445.9,3.1766]
[1718694984456,0.859,3446.9,3445.9,3.1766]
[1718694984457,2.10877668,3446.4,3445.9,3.1766]
[1718694984669,2.1088684,3446.3,3446.0,0.32866]
[1718694984830,0.859,3446.9,3446.0,0.32866]
[1718694985033,2.10886617,3446.8,3446.0,0.32866]
[1718694985832,0.859,3446.9,3446.0,0.32866]
[1718694986270,3.0,3447.2,3446.0,0.38669076]
[1718694986456,0.859,3447.0,3446.1,1.21532908]
[1718694988340,3.0,3447.2,3446.2,2.39193075]
[1718694988542,3.0,3447.2,3446.6,2.3339]
[1718694988837,3.0,3447.3,3446.7,0.859]
[1718694989053,7.43,3447.4,3446.9,0.859]
[1718694989245,0.50221171,3447.8,3446.9,0.859]
[1718694989469,1.36121171,3447.9,3446.9,0.859]
[1718694990341,4.36121171,3447.9,3446.9,0.859]
[1718694991671,3.50197497,3447.9,3446.9,2.3003]
[1718694991880,3.0,3447.9,3447.0,0.26776091]
[1718694992860,3.2316083,3448.0,3447.1,0.05801455]
[1718694993604,3.2316083,3448.0,3447.0,0.26776091]
[1718694994477,3.2316083,3448.0,3447.1,0.05801009]
[1718694994680,3.2316083,3448.0,3447.2,2.4393]
[1718694994879,3.2316083,3448.0,3447.3,0.33451417]
[1718694996001,3.2316083,3448.0,3447.3,0.2765071]
[1718694996673,0.50196915,3448.4,3447.3,0.2765071]
[1718694996876,3.50196915,3448.4,3447.3,0.2765071]
[1718694997093,3.0,3448.4,3447.3,0.2765071]
[1718694997301,0.65019692,3448.3,3447.3,0.2765071]
[1718694998891,3.0,3448.4,3447.5,2.3359]
[1718694999594,2.4214,3448.7,3447.5,2.3359]
[1718695000710,3.0,3448.8,3447.5,2.3359]
[1718695002001,3.0,3448.8,3447.6,0.05800713]
[1718695002212,3.0,3449.1,3447.6,2.4893]
[1718695002411,3.0,3449.1,3447.7,0.745293]
[1718695004227,2.4924,3449.0,3447.7,0.745293]
[1718695004424,2.4924,3449.0,3447.6,2.4893]
[1718695004815,3.50183583,3449.1,3447.6,2.4893]
[1718695005201,3.0,3449.1,3447.6,2.4893]
[1718695005605,2.4924,3449.0,3447.6,2.4893]
[1718695005793,1.12867296,3448.9,3447.6,2.73823]
[1718695005989,4.12867296,3448.9,3447.6,2.73823]
[1718695012807,4.12867296,3448.9,3447.6,2.4893]
[1718695016118,2.10797965,3448.8,3447.6,2.4893]
[1718695016319,5.10797965,3448.8,3447.6,2.4893]
[1718695016519,3.0,3448.8,3447.6,2.4893]
[1718695016725,4.12867296,3448.9,3447.6,2.4893]
[1718695016926,2.82027799,3448.8,3447.6,2.4893]
[1718695017127,3.0,3448.7,3447.6,2.4893]
[1718695017649,0.71229815,3448.8,3447.6,2.4893]
[1718695017844,2.10797242,3448.7,3447.6,2.4893]
[1718695018017,3.0,3448.9,3447.6,2.4893]
[1718695018217,2.10797779,3448.8,3447.6,2.4893]
[1718695018419,2.10797779,3448.7,3447.6,2.4893]
[1718695018751,2.10797779,3448.6,3447.6,2.4893]
[1718695019044,3.0,3448.9,3447.6,2.73823]
[1718695019248,2.1079778,3448.8,3447.6,2.73823]
[1718695019452,5.1079778,3448.8,3447.6,2.73823]
[1718695019747,2.1079778,3448.7,3447.6,2.73823]
[1718695019949,5.1079778,3448.7,3447.6,2.73823]
[1718695020154,2.9689662,3448.6,3447.6,2.73823]
[1718695020452,3.0,3448.5,3447.6,2.73823]
[1718695020653,3.0,3448.6,3447.6,2.73823]
[1718695020849,0.50190615,3448.8,3447.6,2.73823]
[1718695021149,4.21595181,3448.7,3447.7,0.05800711]
[1718695021360,2.3627,3449.3,3447.6,0.24893]
[1718695021361,0.50190615,3449.1,3447.9,2.4199]
[1718695021516,2.10767263,3449.0,3448.1,2.4199]
[1718695021717,2.93,3449.5,3448.1,2.4199]
[1718695021919,4.21497915,3449.4,3448.1,2.4199]
[1718695022147,2.10751228,3449.3,3448.3,2.4204]
[1718695022561,2.10751228,3449.2,3448.3,2.4204]
[1718695022764,3.0,3449.4,3448.3,2.4204]
[1718695022966,2.10750418,3449.3,3448.3,2.4204]
[1718695024177,2.1075546,3449.2,3448.3,2.4204]
[1718695024343,2.10750418,3449.1,3448.3,2.4204]
[1718695024537,5.10750418,3449.1,3448.3,2.4204]
[1718695024743,3.0,3449.1,3448.3,2.4204]
[1718695025046,1.06469649,3449.2,3448.3,2.4204]
[1718695025254,2.10754733,3449.1,3448.3,2.4204]
[1718695025460,5.10754733,3449.1,3448.3,2.4204]
[1718695025773,3.50190615,3449.3,3448.3,2.4204]
[1718695025985,2.10751449,3449.2,3448.3,2.4204]
[1718695026169,5.10751449,3449.2,3448.3,2.4204]
[1718695026380,2.10751449,3449.1,3448.4,2.7140169]
[1718695026541,3.0,3449.5,3448.4,2.7140169]
[1718695026738,4.21487565,3449.4,3448.4,2.7140169]
[1718695026968,7.21487565,3449.3,3448.4,2.7140169]
[1718695027169,7.21487397,3449.2,3448.4,2.7140169]
[1718695027371,2.10745763,3449.1,3448.5,0.29807859]
[1718695027569,3.0,3449.5,3448.5,0.29807859]
[1718695027774,4.21485506,3449.4,3448.5,0.29807859]
[1718695028074,7.21485506,3449.3,3448.5,0.29807859]
[1718695028270,4.21485506,3449.2,3448.5,0.29807859]
[1718695028485,2.10744104,3449.1,3448.6,2.3173]
[1718695028655,2.10744104,3449.0,3448.6,2.3173]
[1718695028856,3.0,3449.5,3448.6,2.3173]
[1718695029053,2.1074388,3449.4,3448.6,2.3173]
[1718695029257,2.1074388,3449.3,3448.6,2.3173]
[1718695029459,2.1074388,3449.2,3448.6,2.3173]
[1718695029664,2.1074388,3449.1,3448.6,2.54903]
[1718695029871,2.1074388,3449.0,3448.6,2.54903]
[1718695030049,3.0,3449.6,3448.6,2.54903]
[1718695030251,2.107443,3449.5,3448.6,2.54903]
[1718695031266,2.10744289,3449.4,3448.6,2.54903]
[1718695031469,2.107443,3449.3,3448.7,0.254903]
[1718695031669,5.107443,3449.3,3448.8,2.3779]
[1718695031984,3.0,3449.6,3448.8,2.3779]
[1718695031985,2.10724927,3449.2,3448.8,2.3779]
[1718695032278,2.10724927,3449.1,3448.8,2.3779]
[1718695032483,3.0,3449.7,3448.8,2.3779]
[1718695032686,4.2147358,3449.6,3448.8,2.3779]
[1718695032885,7.2147358,3449.5,3448.8,2.3779]
[1718695033049,4.2147358,3449.4,3448.8,2.3779]
[1718695033255,4.2147358,3449.3,3448.8,2.3779]
[1718695033455,4.2147358,3449.2,3448.8,2.3779]
[1718695033686,4.2147358,3449.1,3448.8,2.3779]
[1718695033986,2.10735045,3449.0,3448.8,2.3779]
[1718695034189,2.10735045,3448.9,3448.8,2.3779]
[1718695034365,2.10735045,3449.4,3448.8,2.3779]
[1718695034565,4.21474997,3449.3,3448.8,2.3779]
[1718695034765,4.21474997,3449.2,3448.8,2.3779]
[1718695035074,4.21478435,3449.1,3448.8,2.3779]
[1718695035390,4.21478435,3449.0,3448.8,2.3779]
[1718695035553,3.0,3449.5,3448.8,2.3779]
[1718695035759,2.10737973,3449.4,3448.8,2.3779]
[1718695036081,2.10737957,3449.3,3448.8,2.3779]
[1718695036285,2.10737973,3449.2,3448.8,2.3779]
[1718695036590,2.10737957,3449.1,3448.8,2.3779]
[1718695036767,2.10737973,3449.0,3448.8,2.3779]
[1718695036968,2.10737957,3448.9,3448.8,2.3779]
[1718695037296,4.2147593,3448.9,3448.8,2.3779]
[1718695041565,4.2147593,3448.9,3447.7,2.2622]
[1718695041566,8.49523523,3448.9,3447.7,2.2622]
[1718695041866,0.859,3448.6,3447.7,2.2622]
[1718695042075,4.2147593,3448.5,3447.7,2.2622]
[1718695042265,4.2147593,3448.4,3447.7,2.2622]
[1718695042465,4.2147593,3448.3,3447.8,0.31212]
[1718695042659,4.2147593,3448.2,3447.9,2.2622]
[1718695042916,4.2147593,3448.1,3447.9,3.1212]
[1718695043224,3.859,3448.8,3447.9,3.1212]
[1718695043513,4.2155866,3448.7,3448.0,0.343332]
[1718695043835,4.2155866,3448.6,3448.0,0.343332]
[1718695043977,2.10778205,3448.5,3448.0,0.343332]
[1718695044301,4.2155919,3448.5,3448.0,0.343332]
[1718695044590,2.10778205,3448.4,3448.0,0.343332]
[1718695044818,4.2155919,3448.3,3448.1,0.2605532]
[1718695044960,4.2155919,3448.2,3448.1,0.2605532]
[1718695045160,4.2155919,3448.2,3447.9,2.2622]
[1718695045393,4.2155919,3448.1,3447.9,2.2622]
[1718695045610,2.10778205,3448.0,3447.9,2.2622]
[1718695045765,2.10778205,3448.8,3447.9,2.2622]
[1718695046078,13.20164907,3449.5,3447.9,2.2622]
[1718695046079,4.21561075,3448.7,3447.9,2.2622]
[1718695046265,7.21561075,3448.6,3447.9,2.2622]
[1718695046460,4.21561075,3448.5,3447.9,2.2622]
[1718695046661,4.21561075,3448.4,3447.9,2.2622]
[1718695046864,4.21561075,3448.3,3447.9,2.2622]
[1718695047091,4.21561075,3448.2,3447.9,2.48842]
[1718695047264,4.02752765,3449.1,3447.9,2.48842]
[1718695047265,4.21561075,3448.1,3447.9,2.48842]
[1718695047473,2.10778205,3448.0,3447.9,2.48842]
[1718695047701,2.10778205,3449.0,3447.9,2.48842]
[1718695047904,4.21563204,3448.9,3447.9,2.2622]
[1718695048197,7.21563204,3448.8,3447.9,2.2622]
[1718695048372,4.21563204,3448.7,3447.9,2.2622]
[1718695048572,7.21563204,3448.6,3447.9,2.2622]
[1718695048770,4.21563204,3448.5,3447.9,2.2622]
[1718695048969,4.21563204,3448.4,3447.9,2.2622]
[1718695049171,4.21563204,3448.3,3447.9,2.2622]
[1718695049367,4.21563204,3448.2,3447.9,2.2622]
[1718695049573,4.21563204,3448.1,3447.9,2.2622]
[1718695049770,5.3208,3448.6,3447.9,2.2622]
[1718695049771,4.21563204,3448.0,3447.9,2.2622]
[1718695050092,4.21580288,3448.0,3447.9,2.2622]
[1718695051804,4.21580288,3448.0,3447.9,2.48842]
[1718695052407,2.10778205,3448.0,3447.9,2.48842]
[1718695052834,2.10786921,3448.0,3447.9,2.48842]
[1718695052976,7.21565126,3448.4,3447.9,2.2622]
[1718695053176,4.21565126,3448.3,3447.9,2.2622]
[1718695053407,4.21565126,3448.2,3447.9,2.2622]
[1718695053714,4.21565126,3448.1,3447.9,2.2622]
[1718695054012,2.10778205,3448.0,3447.9,2.2622]
[1718695054187,2.10778205,3448.0,3447.9,2.48842]
[1718695054388,5.10778205,3448.6,3447.9,2.48842]
[1718695054598,7.21557909,3448.5,3447.9,2.2622]
[1718695054801,4.21557909,3448.4,3447.9,2.2622]
[1718695054999,4.21557909,3448.3,3447.9,2.2622]
[1718695055183,4.21557909,3448.2,3447.9,2.2622]
[1718695055375,2.10778205,3448.1,3447.9,2.2622]
[1718695055578,3.0,3448.6,3448.1,2.3728]
[1718695055779,4.21549704,3448.5,3448.1,2.3728]
[1718695055979,4.21549704,3448.4,3448.1,2.3728]
[1718695056189,4.21549704,3448.3,3448.1,2.3728]
[1718695056391,2.10775433,3448.2,3448.1,2.3728]
[1718695056596,0.50190972,3448.7,3448.1,2.632702]
[1718695056799,4.21515565,3448.6,3448.1,2.632702]
[1718695057077,4.21515565,3448.5,3448.1,2.632702]
[1718695057279,2.1075644,3448.4,3448.1,2.3728]
[1718695057504,4.21517375,3448.3,3447.0,2.3118]
[1718695057692,2.4019,3448.5,3447.0,2.3118]
[1718695057693,4.21517375,3448.2,3447.0,2.3118]
[1718695057887,4.21517375,3448.1,3447.0,2.3118]
[1718695058189,7.21560256,3448.0,3447.0,2.3118]
[1718695058379,4.21560256,3447.9,3447.0,2.54298]
[1718695058612,7.21560256,3447.8,3447.0,2.54298]
[1718695058806,4.21560256,3447.7,3447.0,2.54298]
[1718695059011,4.21560256,3447.6,3447.0,2.54298]
[1718695059213,3.0,3447.8,3447.0,2.54298]
[1718695059214,4.21560256,3447.5,3447.0,2.54298]
[1718695059535,4.21560256,3447.4,3447.1,0.254298]
[1718695059682,2.1075644,3447.3,3447.1,0.254298]
[1718695059901,3.0,3447.9,3447.1,0.254298]
[1718695060101,4.21652318,3447.8,3447.1,0.3123138]
[1718695060414,4.21652318,3447.7,3447.2,2.3192]
[1718695060614,2.10825089,3447.6,3447.3,0.26315119]
[1718695060818,3.0,3448.0,3446.8,2.37721239]
[1718695061030,4.21613697,3447.9,3446.8,2.37721239]
[1718695061214,5.10804684,3447.8,3446.8,2.37721239]
[1718695061421,2.10804684,3447.7,3446.8,2.37721239]
[1718695062031,2.10805385,3447.6,3446.8,2.37721239]
[1718695062250,3.50191385,3448.1,3447.0,2.3655]
[1718695062420,4.21615488,3448.0,3447.1,2.38261243]
[1718695062619,7.21616335,3447.9,3447.1,2.38261243]
[1718695062814,4.21616335,3447.8,3447.1,2.38261243]
[1718695063133,4.21616335,3447.7,3447.1,2.38261243]
[1718695063356,4.21620428,3447.6,3447.1,2.3246]
[1718695063510,2.10804719,3447.5,3446.2,2.3378]
[1718695063710,4.21620428,3447.5,3446.2,2.3378]
[1718695063933,4.21620428,3447.4,3446.2,2.3378]
[1718695064137,2.3194,3447.9,3446.4,2.3378]
[1718695064138,4.21620428,3447.3,3446.4,2.3378]
[1718695064340,2.10804719,3447.2,3446.4,2.3378]
[1718695064515,3.0,3447.8,3446.4,2.3378]
[1718695064722,4.21680489,3447.7,3446.4,2.3378]
[1718695064907,7.21680489,3447.6,3446.4,2.3378]